[Event "Turkish Women-ch Arzum 2022"]
[Site "Ayvalik"]
[Date "2022.03.07"]
[Round "4.6"]
[White "Incecik, Seyma Zeynep"]
[Black "Ince, Safiye Oyku"]
[Result "0-1"]
[ECO "B84"]
[WhiteElo "1777"]
[BlackElo "1893"]
[Annotator "NA RC"]
[PlyCount "66"]
[EventDate "2022.03.04"]
[EventType "swiss"]
[EventCountry "TUR"]
[SourceTitle "playchess.com"]
[Source "ChessBase"]
[SourceQuality "1"]
[TimeControl "5400+30"]

{[%evp 8,52,10,20,38,43,64,16,25,32767,20,32767,32767,32767,32767,18,72,66,47,69,85,72,32767,-4,16,0,32767,32767,32767,32767,-71,32767,32767,-84,32767,32767,32767,32767,32767,-455,-454,-464,-464,-453,32767,-314,-336]} 1. e4 {[%emt 0:01:00]} c5 {[%emt 0:01:00]} 2. Nf3 {[%emt 0:00:30]} e6 {[%emt 0:00:30]} 3. d4 {[%emt 0:00:30]} cxd4 {[%emt 0:00:30]} 4. Nxd4 {[%emt 0:00:00]} Nc6 {[%emt 0:00:30]} 5. Nc3 {[%emt 0:01:00]} Qc7 {[%emt 0:00:00]} 6. Be3 {[%emt 0:00:30]} a6 {[%emt 0:00:00]} (6... Nf6 $11 {should be considered.}) 7. Be2 {[%emt 0:01:30]} Nf6 {[%emt 0:01:30]} 8. O-O {[%emt 0:01:30]} d6 {[%emt 0:01:30]} 9. f4 {[%emt 0:00:30]} Nxd4 {[%emt 0:00:30]} 10. Bxd4 {[%emt 0:01:30]} e5 {[%emt 0:00:30]} 11. Be3 {[%emt 0:01:30]} exf4 {[%emt 0:01:30]} (11... Be7 $11) 12. Rxf4 {[%emt 0:04:30]} Be6 {[%emt 0:04:30]} 13. Nd5 {[%emt 0:01:30]} Bxd5 {[%emt 0:03:30]} 14. exd5 {[%emt 0:01:30]} Be7 {[%emt 0:00:30]} 15. c4 {[%emt 0:12:30]} (15. Bd4 $14) 15... O-O {[%emt 0:07:30]} 16. Bd3 {[%emt 0:05:30]} Nd7 {[%emt 0:06:30]} 17. Qh5 {[%emt 0:05:30]} g6 {[%emt 0:01:30]} 18. Qh6 {[%emt 0:04:30]} Ne5 {[%emt 0:09:30]} 19. Bd4 {[%emt 0:02:30]} f5 {[%emt 0:00:30]} 20. Raf1 {[%emt 0:11:30]} Bf6 {[%emt 0:05:30]} 21. Bb1 {[%emt 0:03:30]} Qxc4 {[%emt 0:14:30]} 22. g4 {[%emt 0:21:19]} Nxg4 {[%emt 0:04:30]} 23. Bxf6 {[%emt 0:03:06] [#]} Qxf1+ $1 {[%emt 0:05:30]} 24. Rxf1 {[%emt 0:00:42]} Nxh6 {[%emt 0:00:30]} 25. Be7 {[%emt 0:00:00]} Nf7 {[%emt 0:01:30]} 26. Bxf8 {[%emt 0:00:46]} Kxf8 $19 {[%emt 0:00:00]} 27. Kf2 {[%emt 0:01:29]} Rc8 {[%emt 0:00:00]} 28. h4 {[%emt 0:00:13]} Rc4 {[%emt 0:02:30]} 29. Kg3 {[%emt 0:00:36]} Ne5 {[%emt 0:08:30]} 30. Rd1 {[%emt 0:02:58]} Rg4+ {[%emt 0:04:16]} 31. Kh3 {[%emt 0:00:14]} f4 {[%emt 0:00:28]} 32. Rd4 {[%emt 0:07:06]} Rg3+ {[%emt 0:00:30]} 33. Kh2 {[%emt 0:00:30]} Nf3+ {[%emt 0:00:00]} 0-1

[Event "Turkish Women-ch Arzum 2022"]
[Site "Ayvalik"]
[Date "2022.03.07"]
[Round "4.9"]
[White "Onur, Cigdem"]
[Black "Salt, Ilayda"]
[Result "1-0"]
[ECO "B52"]
[WhiteElo "2012"]
[BlackElo "1594"]
[Annotator "NA RC"]
[PlyCount "119"]
[EventDate "2022.03.04"]
[EventType "swiss"]
[EventCountry "TUR"]
[SourceTitle "playchess.com"]
[Source "ChessBase"]
[SourceQuality "1"]
[TimeControl "5400+30"]

1. e4 {[%emt 0:02:00]} c5 {[%emt 0:01:00]} 2. Nf3 {[%emt 0:00:30]} d6 {[%emt 0:00:00]} 3. Bb5+ {[%emt 0:00:30]} Bd7 {[%emt 0:00:00]} 4. Bxd7+ {[%emt 0:00:30]} Qxd7 {[%emt 0:00:00]} 5. O-O {[%emt 0:00:00]} Nc6 {[%emt 0:00:00]} 6. c3 {[%emt 0:00:00]} Nf6 {[%emt 0:00:30]} 7. Re1 {[%emt 0:00:30]} g6 {[%emt 0:00:30]} 8. d4 {[%emt 0:00:30]} cxd4 {[%emt 0:01:30]} 9. cxd4 {[%emt 0:00:30]} Bg7 {[%emt 0:00:30]} 10. Nc3 {[%emt 0:01:30]} O-O {[%emt 0:02:30]} 11. h3 {[%emt 0:12:30] 11.h3 scores better than 11.Bg5.} Rfd8 {[%emt 0:03:30]} 12. Bg5 {[%emt 0:13:30]} h6 {[%emt 0:15:30]} 13. Bh4 {[%emt 0:07:30] [#]} g5 $146 {[%emt 0:11:30]} ({Predecessor:} 13... Nh5 14. Nd5 g5 15. Nxg5 hxg5 16. Bxg5 Nf6 17. Bxf6 Bxf6 18. Re3 Bg7 19. Rg3 Kf8 {1-0 (28) Sanguinetti,L (2202)-Ramos Correa,G (1772) Montevideo 2017}) 14. Bg3 {[%emt 0:00:30]} e6 {[%emt 0:18:30]} 15. Qd2 {[%emt 0:15:30]} Ne7 {[%emt 0:07:30]} 16. e5 {[%emt 0:16:30]} dxe5 {[%emt 0:03:30]} 17. Bxe5 {[%emt 0:01:30]} Ng6 {[%emt 0:08:30]} 18. Rad1 {[%emt 0:03:30]} Rac8 {[%emt 0:07:57]} 19. h4 {[%emt 0:10:55]} gxh4 {[%emt 0:08:04]} (19... g4 $11 20. Bxf6 Bxf6) 20. Bxf6 {[%emt 0:01:45]} Bxf6 {[%emt 0:00:03]} 21. Qxh6 {[%emt 0:00:17]} Qe7 {[%emt 0:03:26]} 22. Re4 {[%emt 0:03:47]} Qf8 {[%emt 0:01:45]} 23. Qh5 {[%emt 0:01:42]} Qg7 {[%emt 0:00:49]} 24. Rg4 {[%emt 0:00:36]} Qh7 {[%emt 0:01:33]} (24... Qh8 $14 25. Qb5 b6) 25. Ne4 {[%emt 0:03:46]} Be7 $1 {[%emt 0:02:15]} 26. Qxh7+ {[%emt 0:00:52]} (26. Qe5 $5 {[%cal Re4f6]}) 26... Kxh7 {[%emt 0:00:02]} 27. Neg5+ $1 {[%emt 0:00:09]} Kg7 {[%emt 0:01:06] [#]} 28. Nxe6+ $1 {[%emt 0:00:39]} fxe6 {[%emt 0:00:40]} 29. Ne5 {[%emt 0:00:05]} Kh7 {[%emt 0:01:20]} 30. Nxg6 {[%emt 0:01:33]} Bf6 {[%emt 0:00:38]} 31. Nxh4 {[%emt 0:00:36]} Rc2 {[%emt 0:00:13]} 32. Rd3 {[%emt 0:00:22]} Rd5 {[%emt 0:00:45]} 33. Nf5 {[%emt 0:01:41]} Rc1+ {[%emt 0:00:44]} 34. Kh2 {[%emt 0:00:04]} Be5+ {[%emt 0:00:14]} 35. Ng3 {[%emt 0:00:51]} Bd6 {[%emt 0:01:05]} 36. f4 {[%emt 0:00:19]} Rc4 {[%emt 0:00:12]} 37. Ne4 {[%emt 0:00:46]} Rh5+ {[%emt 0:00:27]} 38. Kg3 {[%emt 0:00:36]} Be7 {[%emt 0:00:31]} 39. Ng5+ {[%emt 0:00:32]} Bxg5 {[%emt 0:00:33]} 40. Rxg5 {[%emt 0:00:30]} Rxg5+ {[%emt 0:00:30]} 41. fxg5 {[%emt 0:00:00]} Kg6 {[%emt 0:00:00]} 42. d5 {[%emt 0:01:23]} exd5 {[%emt 0:00:00]} 43. Rxd5 {[%emt 0:00:00]} Rc2 {[%emt 0:00:09]} 44. Rb5 {[%emt 0:00:00]} b6 {[%emt 0:00:15]} 45. a4 {[%emt 0:00:55]} Rd2 {[%emt 0:00:31]} 46. Kf3 {[%emt 0:00:30]} Rd6 {[%emt 0:00:56]} 47. Ke4 {[%emt 0:00:39]} Rd2 {[%emt 0:00:40]} 48. g3 {[%emt 0:00:31]} Kh5 {[%emt 0:00:53]} 49. Kf5 {[%emt 0:00:29]} Rf2+ {[%emt 0:00:39]} 50. Ke6 {[%emt 0:00:12]} Rd2 {[%emt 0:00:00]} 51. Kf7 {[%emt 0:00:44]} Rd7+ $18 {[%emt 0:00:44]} 52. Ke6 {[%emt 0:00:30]} Rd2 {[%emt 0:00:00]} 53. b4 {[%emt 0:00:39]} Rd4 {[%emt 0:01:11]} 54. Ke5 {[%emt 0:00:28]} Rd2 {[%emt 0:00:52]} 55. Rd5 {[%emt 0:00:28]} Ra2 {[%emt 0:00:23]} 56. Kf6 {[%emt 0:00:09]} Rf2+ {[%emt 0:00:56]} 57. Rf5 {[%emt 0:00:30]} Rb2 {[%emt 0:00:00]} 58. g6+ {[%emt 0:00:00]} Kh6 {[%emt 0:01:15]} 59. g7 {[%emt 0:00:00]} Kh7 {[%emt 0:00:30]} 60. Rh5+ {[%emt 0:00:06]} 1-0

[Event "Turkish Women-ch Arzum 2022"]
[Site "Ayvalik"]
[Date "2022.03.07"]
[Round "4.10"]
[White "Akat, Elifnaz"]
[Black "Akar, Nilay"]
[Result "1-0"]
[ECO "B23"]
[WhiteElo "1673"]
[BlackElo "1516"]
[Annotator "NA RC"]
[PlyCount "39"]
[EventDate "2022.03.04"]
[EventType "swiss"]
[EventCountry "TUR"]
[SourceTitle "playchess.com"]
[Source "ChessBase"]
[SourceQuality "1"]
[TimeControl "5400+30"]

1. e4 {[%emt 0:01:00]} c5 {[%emt 0:01:00]} 2. Nc3 {[%emt 0:00:30]} e6 {[%emt 0:03:30]} 3. g3 {[%emt 0:00:30]} d5 {[%emt 0:01:30]} 4. exd5 {[%emt 0:00:30]} exd5 {[%emt 0:00:30]} 5. Bg2 {[%emt 0:00:00]} Nf6 {[%emt 0:00:00]} 6. d3 {[%emt 0:00:00]} h6 {[%emt 0:01:00]} 7. Nge2 {[%emt 0:01:30]} Be7 {[%emt 0:02:30]} 8. O-O {[%emt 0:02:30]} O-O {[%emt 0:00:30]} 9. d4 {[%emt 0:02:30]} Bg4 {[%emt 0:07:30]} 10. h3 {[%emt 0:09:30]} Be6 {[%emt 0:06:30]} 11. Be3 {[%emt 0:03:30]} c4 {[%emt 0:02:30]} 12. b3 {[%emt 0:08:30]} Qd7 {[%emt 0:03:30]} 13. g4 {[%emt 0:02:30]} g5 {[%emt 0:19:30]} 14. f4 {[%emt 0:05:30]} Bxg4 {[%emt 0:07:30]} 15. hxg4 {[%emt 0:01:30]} Nxg4 {[%emt 0:04:30]} 16. Nxd5 {[%emt 0:02:30]} Bd6 {[%emt 0:06:30]} 17. fxg5 {[%emt 0:04:30]} Qe6 {[%emt 0:13:36]} 18. Nef4 {[%emt 0:01:30]} Bxf4 {[%emt 0:06:52]} 19. Bxf4 {[%emt 0:00:30]} hxg5 {[%emt 0:02:35]} 20. Qxg4 {[%emt 0:00:30]} 1-0

[Event "Turkish Women-ch Arzum 2022"]
[Site "Ayvalik"]
[Date "2022.03.07"]
[Round "4.11"]
[White "Tanir, Simay"]
[Black "Gur, Tuba"]
[Result "1/2-1/2"]
[ECO "D35"]
[WhiteElo "1510"]
[BlackElo "1750"]
[Annotator "NA RC"]
[PlyCount "91"]
[EventDate "2022.03.04"]
[EventType "swiss"]
[EventCountry "TUR"]
[SourceTitle "playchess.com"]
[Source "ChessBase"]
[SourceQuality "1"]
[TimeControl "5400+30"]

1. d4 {[%emt 0:01:00]} d5 {[%emt 0:01:00]} 2. c4 {[%emt 0:00:30]} e6 {[%emt 0:00:30]} 3. Nc3 {[%emt 0:00:30]} Nf6 {[%emt 0:00:00]} 4. cxd5 {[%emt 0:00:00]} exd5 {[%emt 0:00:00]} 5. Bg5 {[%emt 0:00:00]} c6 {[%emt 0:00:00]} 6. e3 {[%emt 0:00:00]} Bf5 {[%emt 0:00:00]} 7. Qf3 {[%emt 0:12:00]} Bg6 {[%emt 0:00:30]} 8. Bxf6 {[%emt 0:00:30]} Qxf6 {[%emt 0:00:00]} 9. Qxf6 {[%emt 0:00:30]} gxf6 {[%emt 0:00:00]} 10. h4 {[%emt 0:03:30]} h5 {[%emt 0:01:30]} 11. Nh3 {[%emt 0:05:30]} Nd7 {[%emt 0:03:30]} 12. Nf4 {[%emt 0:02:30]} Bd6 {[%emt 0:00:30]} 13. g3 {[%emt 0:01:30]} Nf8 {[%emt 0:07:30]} 14. Bh3 {[%emt 0:03:30]} f5 {[%emt 0:16:30]} 15. Kd2 {[%emt 0:08:30]} Ne6 {[%emt 0:03:30]} 16. a3 {[%emt 0:05:30]} Kd7 {[%emt 0:09:30]} 17. b4 {[%emt 0:02:30]} b5 {[%emt 0:09:30]} 18. Nd3 {[%emt 0:03:30]} a5 {[%emt 0:03:30]} 19. Ne2 {[%emt 0:07:30]} Rhb8 {[%emt 0:16:30]} 20. Kc3 {[%emt 0:03:30]} Ra7 {[%emt 0:06:30]} 21. Kb2 {[%emt 0:06:30]} Rba8 {[%emt 0:02:38]} 22. Rhc1 {[%emt 0:02:30]} Kc7 {[%emt 0:06:27]} 23. Bg2 {[%emt 0:11:30]} axb4 {[%emt 0:06:30]} 24. axb4 {[%emt 0:00:16]} Rxa1 {[%emt 0:00:55]} 25. Rxa1 {[%emt 0:00:30]} Rxa1 {[%emt 0:00:30]} 26. Kxa1 {[%emt 0:00:00]} f4 {[%emt 0:00:00]} 27. Nexf4 {[%emt 0:00:41]} Nxf4 {[%emt 0:00:00]} 28. Nxf4 {[%emt 0:00:03]} Bxb4 {[%emt 0:00:00]} 29. Bxd5 {[%emt 0:05:29]} Be1 {[%emt 0:00:43]} 30. Nxg6 {[%emt 0:04:35]} fxg6 {[%emt 0:00:30]} 31. Bf7 {[%emt 0:00:30]} Bxf2 {[%emt 0:00:00]} 32. Bxg6 {[%emt 0:00:00]} Bxe3 {[%emt 0:00:10]} 33. Bxh5 {[%emt 0:00:00]} Bxd4+ {[%emt 0:00:00]} 34. Ka2 {[%emt 0:00:13]} Bf2 {[%emt 0:00:00]} 35. Be2 {[%emt 0:00:57]} Bxg3 {[%emt 0:00:14]} 36. h5 {[%emt 0:00:00]} Bf4 {[%emt 0:06:06]} 37. Kb3 {[%emt 0:00:23]} Kd6 {[%emt 0:00:56]} 38. Kb4 {[%emt 0:01:36]} Bd2+ {[%emt 0:00:56]} 39. Kb3 {[%emt 0:00:11]} Kc5 {[%emt 0:00:29]} 40. Bf3 {[%emt 0:00:37]} Kb6 {[%emt 0:00:36]} 41. Bg2 {[%emt 0:01:50]} c5 {[%emt 0:01:38]} 42. Bf1 {[%emt 0:00:25]} Kc6 {[%emt 0:00:46]} 43. Bg2+ {[%emt 0:01:05]} Kd6 {[%emt 0:00:54]} 44. Bf1 {[%emt 0:00:09]} c4+ {[%emt 0:00:18]} 45. Bxc4 {[%emt 0:00:09]} bxc4+ {[%emt 0:00:31]} 46. Kxc4 {[%emt 0:00:30]} 1/2-1/2

[Event "Turkish Women-ch Arzum 2022"]
[Site "Ayvalik"]
[Date "2022.03.07"]
[Round "4.12"]
[White "Gulceken, Sumeyye"]
[Black "Bese, Irem"]
[Result "0-1"]
[ECO "D45"]
[WhiteElo "1591"]
[BlackElo "1714"]
[Annotator "NA RC"]
[PlyCount "56"]
[EventDate "2022.03.04"]
[EventType "swiss"]
[EventCountry "TUR"]
[SourceTitle "playchess.com"]
[Source "ChessBase"]
[SourceQuality "1"]
[TimeControl "5400+30"]

1. d4 {[%emt 0:02:00]} d5 {[%emt 0:01:00]} 2. c4 {[%emt 0:00:30]} e6 {[%emt 0:00:00]} 3. Nf3 {[%emt 0:00:00]} Nf6 {[%emt 0:00:00]} 4. Nc3 {[%emt 0:00:00]} Bb4 {[%emt 0:00:30]} 5. e3 {[%emt 0:00:00]} Ne4 {[%emt 0:00:30]} 6. Qc2 {[%emt 0:00:00]} c6 {[%emt 0:01:30]} 7. a3 {[%emt 0:01:30]} Bxc3+ {[%emt 0:01:30]} 8. bxc3 {[%emt 0:00:30]} O-O {[%emt 0:00:30]} 9. Bd3 {[%emt 0:00:30]} f5 {[%emt 0:00:00]} 10. O-O {[%emt 0:00:30]} Nd7 {[%emt 0:00:00]} 11. a4 {[%emt 0:04:30]} Rf6 {[%emt 0:08:30]} 12. cxd5 {[%emt 0:03:30]} exd5 {[%emt 0:03:30]} 13. c4 {[%emt 0:04:30]} Rh6 {[%emt 0:08:30]} 14. cxd5 {[%emt 0:07:30]} cxd5 {[%emt 0:02:30]} 15. Qb3 {[%emt 0:01:30]} Nf8 {[%emt 0:08:30]} 16. Ne5 {[%emt 0:12:30]} Qh4 {[%emt 0:07:30]} 17. h3 {[%emt 0:03:30]} Ng5 {[%emt 0:10:30]} 18. Rd1 {[%emt 0:30:30]} Be6 {[%emt 0:08:30]} 19. Kf1 {[%emt 0:04:30]} Ng6 {[%emt 0:08:30]} 20. Qxb7 {[%emt 0:04:45]} Re8 {[%emt 0:04:30]} 21. Bb5 {[%emt 0:03:48]} Nxe5 {[%emt 0:06:06]} 22. dxe5 {[%emt 0:01:18]} Ne4 {[%emt 0:01:22]} 23. Ra2 {[%emt 0:02:25]} Rd8 {[%emt 0:03:04]} 24. Rb2 {[%emt 0:03:05]} f4 {[%emt 0:01:40]} 25. exf4 {[%emt 0:01:15]} Bxh3 {[%emt 0:01:06]} 26. Ke1 {[%emt 0:07:39]} Bg4 {[%emt 0:02:18]} 27. Rxd5 {[%emt 0:00:52]} Qh1+ {[%emt 0:00:44]} 28. Bf1 {[%emt 0:00:30]} Qxf1+ {[%emt 0:00:00]} 0-1

[Event "Turkish Women-ch Arzum 2022"]
[Site "Ayvalik"]
[Date "2022.03.07"]
[Round "4.13"]
[White "Keskinler, Ela"]
[Black "Yurdakul, Didem Nuray"]
[Result "1-0"]
[ECO "B22"]
[WhiteElo "1400"]
[BlackElo "1804"]
[Annotator "NA RC"]
[PlyCount "87"]
[EventDate "2022.03.04"]
[EventType "swiss"]
[EventCountry "TUR"]
[SourceTitle "playchess.com"]
[Source "ChessBase"]
[SourceQuality "1"]
[TimeControl "5400+30"]

1. e4 {[%emt 0:01:00]} c5 {[%emt 0:01:00]} 2. c3 {[%emt 0:00:00]} d5 {[%emt 0:00:30]} 3. exd5 {[%emt 0:00:00]} Qxd5 {[%emt 0:00:30]} 4. d4 {[%emt 0:00:00]} g6 {[%emt 0:00:00]} 5. Na3 {[%emt 0:01:00]} Bg7 {[%emt 0:00:00]} 6. Nb5 {[%emt 0:01:30]} Na6 $1 {[%emt 0:00:30]} 7. Be3 {[%emt 0:00:30]} cxd4 {[%emt 0:00:30]} 8. Bxd4 {[%emt 0:01:30]} Nf6 {[%emt 0:03:30]} 9. Bxa7 {[%emt 0:01:30]} Qc6 {[%emt 0:01:30]} 10. Be3 {[%emt 0:02:30]} O-O {[%emt 0:01:30]} 11. Nf3 {[%emt 0:01:30]} Bg4 {[%emt 0:00:00]} (11... Ng4 $11) 12. Nbd4 {[%emt 0:01:30]} (12. h3 $5 {[%cal Rh3g4]} Rfd8 13. Nbd4 Bxf3 14. Qxf3 Qxf3 15. Nxf3 $14) 12... Qc7 {[%emt 0:01:00]} 13. h3 {[%emt 0:00:30]} Bd7 {[%emt 0:01:30]} 14. Be2 {[%emt 0:02:30]} Rfd8 {[%emt 0:00:30]} 15. Qc1 {[%emt 0:02:30]} Nd5 {[%emt 0:07:30]} 16. O-O {[%emt 0:02:30]} Nc5 {[%emt 0:08:30]} 17. Rd1 {[%emt 0:04:30]} Ne4 {[%emt 0:05:30]} (17... Be8 $11 {is more appropriate.}) 18. Bd3 {[%emt 0:03:30]} (18. Nb5 $16 Bxb5 19. Bxb5) 18... Nef6 {[%emt 0:01:30]} 19. Nb5 {[%emt 0:07:30]} Qc8 {[%emt 0:03:30]} 20. Ne5 {[%emt 0:08:30]} Nxe3 {[%emt 0:01:30]} 21. Qxe3 {[%emt 0:09:30]} Bxb5 {[%emt 0:01:30]} 22. Bxb5 {[%emt 0:00:30]} Rxd1+ $16 {[%emt 0:00:30]} 23. Rxd1 {[%emt 0:00:00]} e6 {[%emt 0:05:30]} 24. Bc4 {[%emt 0:04:00]} Nd5 {[%emt 0:06:30]} 25. Bxd5 {[%emt 0:03:30]} exd5 {[%emt 0:02:30]} 26. a3 {[%emt 0:00:30]} Qe6 {[%emt 0:00:30]} 27. Ng4 {[%emt 0:00:30]} Qc6 {[%emt 0:01:30]} 28. Qf3 {[%emt 0:01:30]} Qb6 {[%emt 0:01:30]} 29. Rd2 {[%emt 0:04:30]} h5 {[%emt 0:00:30]} 30. Ne3 {[%emt 0:01:30]} d4 {[%emt 0:00:30]} 31. cxd4 {[%emt 0:04:30]} Bxd4 {[%emt 0:00:30]} 32. Nd5 {[%emt 0:01:30]} Qc5 {[%emt 0:01:30]} 33. Qd1 {[%emt 0:01:30]} Be5 {[%emt 0:02:30]} 34. Nb4 {[%emt 0:01:30]} Bf6 {[%emt 0:02:30]} 35. Rc2 {[%emt 0:02:30]} Qf5 {[%emt 0:00:30]} 36. Qd5 {[%emt 0:00:30]} Be5 {[%emt 0:03:30]} 37. Qxb7 {[%emt 0:02:30]} Rd8 {[%emt 0:02:30]} 38. Qf3 {[%emt 0:00:30]} Qd7 {[%emt 0:00:30]} 39. g4 {[%emt 0:01:30]} hxg4 {[%emt 0:01:30]} 40. Qxg4 {[%emt 0:00:30]} Qb7 {[%emt 0:01:30]} 41. Nc6 {[%emt 0:01:30]} Qb3 {[%emt 0:01:30]} 42. Qe2 {[%emt 0:01:30]} Re8 {[%emt 0:01:30]} 43. Nxe5 {[%emt 0:00:30]} Rxe5 {[%emt 0:00:00]} 44. Rc8+ {[%emt 0:00:00]} 1-0

[Event "Turkish Women-ch Arzum 2022"]
[Site "Ayvalik"]
[Date "2022.03.07"]
[Round "4.14"]
[White "Zengin, Ovgu"]
[Black "Akin, Duru"]
[Result "1/2-1/2"]
[ECO "B52"]
[WhiteElo "1475"]
[BlackElo "1563"]
[Annotator "NA RC"]
[PlyCount "51"]
[EventDate "2022.03.04"]
[EventType "swiss"]
[EventCountry "TUR"]
[SourceTitle "playchess.com"]
[Source "ChessBase"]
[SourceQuality "1"]
[TimeControl "5400+30"]

1. e4 {[%emt 0:04:00]} c5 {[%emt 0:01:00]} 2. Nf3 {[%emt 0:00:30]} d6 {[%emt 0:00:00]} 3. Bb5+ {[%emt 0:00:30]} Bd7 {[%emt 0:00:00]} 4. Bxd7+ {[%emt 0:00:30]} Qxd7 {[%emt 0:00:00]} 5. c4 {[%emt 0:00:30]} Nc6 {[%emt 0:00:00]} 6. d4 {[%emt 0:02:30]} cxd4 {[%emt 0:00:30]} 7. Nxd4 {[%emt 0:00:00]} Nf6 {[%emt 0:00:00]} 8. Nc3 {[%emt 0:01:00]} g6 {[%emt 0:00:00]} 9. f3 {[%emt 0:05:30]} Bg7 {[%emt 0:00:30]} 10. Be3 {[%emt 0:00:30]} O-O {[%emt 0:00:30]} 11. O-O {[%emt 0:00:30]} Rfc8 {[%emt 0:00:30]} 12. b3 {[%emt 0:06:30]} e6 {[%emt 0:02:30]} 13. Rc1 {[%emt 0:04:30]} d5 {[%emt 0:05:30]} 14. exd5 {[%emt 0:04:30]} exd5 {[%emt 0:00:30]} 15. Nxc6 {[%emt 0:04:30]} bxc6 {[%emt 0:00:30]} 16. cxd5 {[%emt 0:01:30]} cxd5 {[%emt 0:00:30]} 17. Bd4 {[%emt 0:01:30]} Rd8 {[%emt 0:01:30]} 18. Qd3 {[%emt 0:05:30]} Ne8 {[%emt 0:15:30]} 19. Rfd1 {[%emt 0:06:30]} Rac8 {[%emt 0:09:30]} 20. Bxg7 {[%emt 0:09:30]} Kxg7 {[%emt 0:00:30]} 21. Qd4+ {[%emt 0:02:30]} Kg8 {[%emt 0:01:30]} 22. Rd3 {[%emt 0:03:30]} Qb7 {[%emt 0:06:30]} 23. Rcd1 {[%emt 0:02:30]} Nc7 {[%emt 0:00:30]} 24. Qe5 {[%emt 0:05:30]} Re8 {[%emt 0:00:30]} 25. Qd4 {[%emt 0:01:30]} Rcd8 {[%emt 0:02:30]} 26. Qf2 {[%emt 0:02:30]} 1/2-1/2

[Event "Turkish Women-ch Arzum 2022"]
[Site "Ayvalik"]
[Date "2022.03.07"]
[Round "4.15"]
[White "Aydogan, Arya"]
[Black "Kayis, Gulcan Sena"]
[Result "0-1"]
[ECO "C11"]
[WhiteElo "1328"]
[BlackElo "1597"]
[Annotator "NA RC"]
[PlyCount "136"]
[EventDate "2022.03.04"]
[EventType "swiss"]
[EventCountry "TUR"]
[SourceTitle "playchess.com"]
[Source "ChessBase"]
[SourceQuality "1"]
[TimeControl "5400+30"]

1. e4 {[%emt 0:01:00]} e6 {[%emt 0:01:00]} 2. d4 {[%emt 0:00:30]} d5 {[%emt 0:00:00]} 3. Nc3 {[%emt 0:00:30]} Nf6 {[%emt 0:00:00]} 4. e5 {[%emt 0:00:00]} Nfd7 {[%emt 0:00:30]} 5. f4 {[%emt 0:00:00]} c5 {[%emt 0:00:30]} 6. Nf3 {[%emt 0:00:30]} a6 {[%emt 0:00:00]} 7. Be3 {[%emt 0:04:30]} Qb6 {[%emt 0:01:00]} 8. a3 {[%emt 0:02:30]} Nc6 {[%emt 0:00:30]} 9. Be2 {[%emt 0:02:30]} cxd4 {[%emt 0:01:30]} 10. Nxd4 {[%emt 0:00:30]} Bc5 {[%emt 0:01:30]} 11. Na4 {[%emt 0:01:30]} Qa5+ {[%emt 0:00:30]} 12. c3 {[%emt 0:00:00]} Bxd4 {[%emt 0:00:30]} 13. Bxd4 {[%emt 0:01:00]} Nxd4 {[%emt 0:00:30]} 14. Qxd4 {[%emt 0:00:00]} O-O {[%emt 0:00:30]} 15. O-O {[%emt 0:02:00]} Qc7 {[%emt 0:01:30]} 16. b4 {[%emt 0:05:30]} b5 {[%emt 0:02:30]} 17. Nb2 {[%emt 0:00:30]} Bb7 {[%emt 0:01:30]} 18. a4 {[%emt 0:08:30]} Bc6 {[%emt 0:10:30]} 19. Rf3 {[%emt 0:08:30]} f6 {[%emt 0:04:30]} 20. Re3 {[%emt 0:11:30]} Nb6 {[%emt 0:13:30]} 21. a5 {[%emt 0:07:30]} Nd7 {[%emt 0:05:30]} 22. exf6 {[%emt 0:14:30]} Rxf6 {[%emt 0:01:30]} 23. Nd3 {[%emt 0:02:30]} Raf8 {[%emt 0:06:30]} 24. Bg4 {[%emt 0:02:30]} Re8 {[%emt 0:07:30]} 25. Rae1 {[%emt 0:01:30]} Nf8 {[%emt 0:00:30]} 26. g3 {[%emt 0:06:18]} Qc8 {[%emt 0:06:30]} 27. Nc5 {[%emt 0:03:22]} Kf7 {[%emt 0:04:30]} 28. Bh5+ {[%emt 0:04:58]} g6 {[%emt 0:01:30]} 29. Bg4 {[%emt 0:03:05]} Bb7 {[%emt 0:05:30]} 30. h4 {[%emt 0:01:47]} Qc7 {[%emt 0:02:30]} 31. h5 {[%emt 0:00:42]} Bc8 {[%emt 0:01:30]} 32. hxg6+ {[%emt 0:00:33]} hxg6 {[%emt 0:01:03]} 33. Kg2 {[%emt 0:00:47]} Qd8 {[%emt 0:02:13]} 34. Nd3 {[%emt 0:01:28]} Kg8 {[%emt 0:01:26]} 35. Ne5 {[%emt 0:00:48]} Nh7 {[%emt 0:01:41]} 36. Rh1 {[%emt 0:00:28]} Ref8 {[%emt 0:00:24]} 37. Bd1 {[%emt 0:00:34]} g5 {[%emt 0:02:40]} 38. Bc2 {[%emt 0:00:35]} gxf4 {[%emt 0:01:00]} 39. Bxh7+ {[%emt 0:00:11]} Kg7 {[%emt 0:00:00]} 40. gxf4 {[%emt 0:00:30]} Rh8 {[%emt 0:00:25]} 41. Ng4 {[%emt 0:00:48]} e5 {[%emt 0:00:27]} 42. Rxe5 {[%emt 0:00:37]} Bxg4 {[%emt 0:00:51]} 43. Rg5+ {[%emt 0:00:06]} Kf8 {[%emt 0:00:31]} 44. Rxg4 {[%emt 0:00:14]} Qe7 {[%emt 0:00:00]} 45. Qc5 {[%emt 0:01:47]} Rd6 {[%emt 0:00:25]} 46. Bd3 {[%emt 0:00:41]} Rxh1 {[%emt 0:00:59]} 47. Kxh1 {[%emt 0:00:05]} Qe1+ {[%emt 0:00:32]} 48. Qg1 {[%emt 0:00:30]} Rh6+ {[%emt 0:00:00]} 49. Kg2 {[%emt 0:00:25]} Qd2+ {[%emt 0:00:00]} 50. Kf1 {[%emt 0:01:06]} Qxd3+ {[%emt 0:00:31]} 51. Kf2 {[%emt 0:00:33]} Qd2+ {[%emt 0:00:44]} 52. Kf1 {[%emt 0:00:16]} Qc1+ {[%emt 0:00:59]} 53. Kf2 {[%emt 0:00:14]} Qc2+ {[%emt 0:00:24]} 54. Kf1 {[%emt 0:00:12]} Qb1+ {[%emt 0:01:03]} 55. Kf2 {[%emt 0:00:39]} Qb2+ {[%emt 0:00:29]} 56. Kf1 {[%emt 0:00:00]} Qc1+ {[%emt 0:02:55]} 57. Kf2 {[%emt 0:00:00]} Qc2+ {[%emt 0:00:30]} 58. Kf1 {[%emt 0:00:25]} Qd3+ {[%emt 0:00:00]} 59. Kf2 {[%emt 0:00:01]} Qxc3 {[%emt 0:01:57]} 60. Qg2 {[%emt 0:02:40]} Qc2+ {[%emt 0:00:50]} 61. Kf1 {[%emt 0:00:47]} Qd3+ {[%emt 0:00:51]} 62. Kf2 {[%emt 0:00:20]} Qd4+ {[%emt 0:00:18]} 63. Kf1 {[%emt 0:00:18]} Rc6 {[%emt 0:01:22]} 64. Qe2 {[%emt 0:01:51]} Rc1+ {[%emt 0:04:03]} 65. Kg2 {[%emt 0:00:11]} Qg1+ {[%emt 0:00:17]} 66. Kh3 {[%emt 0:00:48]} Qh1+ {[%emt 0:00:04]} 67. Qh2 {[%emt 0:00:34]} Qf3+ {[%emt 0:00:05]} 68. Rg3 {[%emt 0:00:33]} Qh5+ {[%emt 0:00:05]} 0-1